Cogmind - Beta 13 @@@ ROGUE MODE // 2024.04.11 @ 05:12:12 Player: sick0r Result: Destroyed by G-34 Mercenary with Small Laser Performance ------------- Evolutions (0) 0 Regions Visited (1) 200 Robots Destroyed (22) 110 Value Destroyed (613) 613 Prototype IDs (0) 0 Alien Tech Used (0) 0 Bonus (0) 0 TOTAL SCORE: 923 Bonus ------- None Cogmind --------- Core Integrity 0/250 Matter 300/300 Energy 150/250 System Corruption 0% Temperature Hot (290) Movement Rolling (95) Ox1 Location -10/Materials Parts ------- > --- POWER (1) -------- Ion Engine > --- PROPULSION (2) --- Wheel Wheel > --- UTILITY (2) ------ Large Storage Unit Signal Interpreter > --- WEAPON (2) ------- Medium Laser Beam Cannon > --- INVENTORY (15) --- Ion Engine Light Nuclear Core Aluminum Leg Aluminum Leg Improved Heat Sink High-capacity Battery (250) Terrain Scan Processor Power Shielding Light EM Pulse Cannon Mining Laser Plasma Cutter Peak State ------------ > --- POWER ------------ Light Nuclear Core > --- PROPULSION ------- Light Treads Light Treads > --- UTILITY ---------- Improved Heat Sink Small Storage Unit > --- WEAPON ----------- Medium Laser Light Cannon > --- INVENTORY -------- Ion Engine Aluminum Leg Aluminum Leg Compact Wheel Compact Wheel Power Shielding Medium Laser Small Laser [Rating: 11] Favorites ----------- Power Ion Engine Engine Ion Engine Power Core Light Nuclear Core Propulsion Compact Wheel Treads Light Treads Wheel Compact Wheel Utility Signal Interpreter Device Improved Heat Sink Storage Small Storage Unit Processor Signal Interpreter Weapon Medium Laser Energy Gun Medium Laser Energy Cannon Beam Cannon Ballistic Cannon Light Cannon Launcher EMP Blaster Build | -11 -10 ------- Run | Yrd Mat Slots Evolved . | . . Power . | . . Propulsion . | . . Utility . | . . Weapon . | . . Parts Attached 34 | 6 28 Power 7 | 1 6 Engine 5 | 1 4 Core 2 | . 2 Reactor . | . . Propulsion 9 | 2 7 Treads 2 | 2 . Leg . | . . Wheel 7 | . 7 Hover . | . . Flight . | . . Utility 6 | 1 5 Device 2 | . 2 Storage 3 | 1 2 Processor 1 | . 1 Hackware . | . . Protection . | . . Artifact . | . . Weapon 12 | 2 10 Energy Gun 6 | 2 4 Energy Cannon 2 | . 2 Ballistic Gun . | . . Ballistic Cannon 3 | . 3 Launcher 1 | . 1 Special Weapon . | . . Impact Weapon . | . . Slashing Weapon . | . . Piercing Weapon . | . . Special Melee Weapon . | . . Unidentified Prototypes . | . . Parts Lost 5 | . 5 Power 2 | . 2 Propulsion 2 | . 2 Utility . | . . Weapon 1 | . 1 Highest Loss Streak 2 | . 2 To Critical Strikes . | . . Average Slot Usage (%) 96 | . 96 Engine 8 | . 8 Core 4 | . 4 Treads 6 | . 6 Wheel 21 | . 21 Device 1 | . 1 Storage 14 | . 14 Processor 9 | . 9 Energy Gun 13 | . 13 Energy Cannon 8 | . 8 Ballistic Cannon 3 | . 3 Launcher 1 | . 1 Naked Turns . | . . Heaviest Build 33 | 13 33 Greatest Support 40 | 40 40 Greatest Overweight (x) 3 | 3 1 Average Overweight (x) . | . . Largest Inventory Capacity 15 | 8 15 Average Capacity 9 | 7 10 Most Carried 14 | 8 14 Average Carried 9 | 5 9 Final Capacity 15 | 8 15 Final Carried 11 | 6 11 Class Distribution -------------------- 100% | Mutant Dominant Class ---------------- Mutant | -10/Materials Resources | -11 -10 ----------- Run | Yrd Mat Matter Collected 638 | 164 474 Remotely . | . . Salvage Created 706 | . 706 Parts 39 | . 39 Haulers Intercepted 1 | . 1 Recyclers Shooed . | . . Parts Field Recycled . | . . Retrieved Matter . | . . Parts Self-Destructed . | . . Prevented . | . . Kills | -11 -10 ------- Run | Yrd Mat Combat Hostiles Destroyed 14 | . 14 Guns 3 | . 3 Cannons 10 | . 10 AOE 1 | . 1 Classes Destroyed 6 | . 6 Worker 1 | . 1 Builder 1 | . 1 Hauler 1 | . 1 Operator 2 | . 2 Watcher 3 | . 3 Grunt 14 | . 14 Best Kill Streak 3 | . 3 Combat Bots Only 3 | . 3 Max Kills in Single Turn 1 | . 1 Gunslinging . | . . Exploded 1 | . 1 Melee . | . . Uniques/NPCs Destroyed . | . . Combat | -11 -10 -------- Run | Yrd Mat Hostile Shots Fired 93 | . 93 Missed 20 | . 20 Damage Taken 1044 | . 1044 Core 257 | . 257 Absorbed by Shields . | . . Regen/Repaired (Parts) 45 | . 45 Core Remaining (%) 100 | 100 . Volleys Fired 66 | . 66 Largest 2 | . 2 Hottest 110 | . 110 Shots Fired 132 | . 132 Gun 66 | . 66 Cannon 62 | . 62 Launcher 4 | . 4 Special . | . . Kinetic 24 | . 24 Thermal 104 | . 104 Explosive . | . . Electromagnetic 4 | . 4 Robot Hit Streak 14 | . 14 Robot Miss Streak 3 | . 3 Penetration Max . | . . Secondary Targets . | . . Shots Hit Robots 93 | . 93 Core Hits 35 | . 35 Critical Kills . | . . Critical Parts Destroyed . | . . Critical Strikes 5 | . 5 Burn 5 | . 5 Melee Attacks . | . . Impact . | . . Slashing . | . . Piercing . | . . Sneak Attacks . | . . Combat Hostiles . | . . Follow-up Attacks . | . . Damage Inflicted 1491 | . 1491 Guns 642 | . 642 Cannons 734 | . 734 Explosions 115 | . 115 Melee . | . . Ramming . | . . Kinetic 333 | . 333 Thermal 1043 | . 1043 Explosive . | . . Electromagnetic 115 | . 115 Impact . | . . Slashing . | . . Piercing . | . . Highest Corruption . | . . Average Corruption . | . . Corruption Purged . | . . Corruption Blocked . | . . Overload Shots . | . . Overflow Damage 34 | . 34 Projectiles 7 | . 7 Explosions 27 | . 27 Melee . | . . Knockbacks 2 | . 2 Impact . | . . Kinetic 2 | . 2 Secondary . | . . Self-Inflicted Damage 113 | . 113 Shots 5 | . 5 Rammed . | . . Targets Rammed . | . . Kicked . | . . Crushed . | . . Highest Temperature 528 | . 528 Average Temperature 130 | . 130 Received Heat Transfer 513 | . 513 Effects 4 | . 4 Shutdowns 2 | . 2 Energy Bleed 1 | . 1 Damage (core) 1 | . 1 Siege Activations . | . . Robots Corrupted . | . . Combat Hostiles . | . . Parts Fried . | . . Impact Corruptions . | . . Robots Melted . | . . Combat Hostiles . | . . Parts Melted 7 | . 7 Heat Transferred 3108 | . 3108 Parts Sabotaged . | . . Parts Stolen . | . . Parts Stripped . | . . Power Chain Reactions 1 | . 1 Alert | -11 -10 ------- Run | Yrd Mat Peak Influence 212 | . 212 Initial . | . . Average 42 | . 44 Maximum Alert Level 1 | . 1 Low Security (%) 98 | 100 98 Level 1 1 | . 1 Level 2 . | . . Level 3 . | . . Level 4 . | . . Level 5 . | . . High Security . | . . Max Security . | . . Squads Dispatched 4 | . 4 Investigation 3 | . 3 Extermination . | . . Reinforcement 1 | . 1 Assault . | . . Garrison . | . . Intercept . | . . Searches Triggered . | . . Construction Impeded . | . . Haulers Reinforced . | . . Active Scanning Responses . | . . Cargo Convoy Interrupts . | . . Stealth | -11 -10 --------- Run | Yrd Mat Distress Signals . | . . Communications Jammed . | . . Distress Signals . | . . Times Spotted 22 | . 22 Peak Tracking Total 3 | . 3 Tactical Retreats 1 | . 1 Traps | -11 -10 ------- Run | Yrd Mat Traps Triggered 3 | . 3 Indirectly . | . . Trap Hack Attempts . | . . Triggered . | . . Disarmed . | . . Reprogrammed . | . . Reused . | . . Traps Extracted . | . . Installed . | . . Triggered . | . . Machines | -11 -10 ---------- Run | Yrd Mat Machines Disabled 1 | . 1 Max in Single Turn 1 | . 1 Machines Repaired . | . . Machines Dismantled . | . . Machines Sabotaged . | . . Overloaded Fab Kills . | . . Hacking | -11 -10 --------- Run | Yrd Mat Machines Accessed 7 | . 7 Terminals 6 | . 6 Fabricators . | . . Repair Stations 1 | . 1 Recycling Units . | . . Scanalyzers . | . . Garrison Access . | . . Total Hacks 26 | . 26 Successful 13 | . 13 Failed 13 | . 13 Catastrophic 3 | . 3 Database Lockouts . | . . Manual . | . . Terminals 20 | . 20 Fabricators . | . . Repair Stations 6 | . 6 Recycling Units . | . . Scanalyzers . | . . Garrison Access . | . . Terminal Hacks 9 | . 9 Branch Access Points 1 | . 1 Emergency Access Points 2 | . 2 Repair Station Index 1 | . 1 Locate Traps 1 | . 1 Dispatch Records 2 | . 2 Assault Status 1 | . 1 Zone Layout 1 | . 1 Fabricator Hacks . | . . Repair Station Hacks 4 | . 4 Scan Component 2 | . 2 Repair 2 | . 2 Recycling Unit Hacks . | . . Scanalyzer . | . . Garrison Access Hacks . | . . Unauthorized Hacks . | . . Terminals . | . . Fabricators . | . . Repair Stations . | . . Recycling Units . | . . Scanalyzers . | . . Garrison Access . | . . Data Cores Recovered 1 | . 1 Used . | . . Hacking Detections 7 | . 7 Full Trace Events 4 | . 4 Feedback Events . | . . Feedback Blocked . | . . Robot Schematics Acquired . | . . Robots Built . | . . Authchips . | . . Time . | . . Total Robot Build Rating . | . . Part Schematics Acquired . | . . Parts Built . | . . Authchips . | . . Time . | . . Total Part Build Rating . | . . Parts Repaired 2 | . 2 Time 64 | . 64 Parts Recycled . | . . Recycled Matter . | . . Retrieved Matter . | . . Retrieved Components . | . . Parts Scanalyzed . | . . Part Schematics Acquired . | . . Parts Damaged . | . . Bothacking | -11 -10 ------------ Run | Yrd Mat Used RIF Installer . | . . Robots Hacked . | . . Non-combat . | . . Combat . | . . Robot Hacks Applied . | . . Relay Couplers Released . | . . Fabnet Peak Effective % . | . . Robots Rewired . | . . Allies Hacked . | . . Hacks Repelled . | . . Allies | -11 -10 -------- Run | Yrd Mat Total Allies . | . . Largest Group . | . . Highest-Rated Group . | . . Highest-Rated Ally . | . . Total Orders . | . . Ally Attacks . | . . Total Damage . | . . Kills . | . . Allies Corrupted . | . . Allies Melted . | . . Intel | -11 -10 ------- Run | Yrd Mat Robot Analysis Total . | . . Derelict Logs Recovered . | . . Drone Launches . | . . Drone Recoveries . | . . Exploration | -11 -10 ------------- Run | Yrd Mat Turns Passed 1963 | 92 1871 Spaces Moved 1328 | 50 1278 Core 20 | 20 . Treads 239 | 30 209 Legs . | . . Wheels 1069 | . 1069 Hover . | . . Flight . | . . Fastest Speed 50 | 50 90 Average Speed 110 | 152 108 Slowest Speed 200 | 200 160 Overloaded Moves . | . . Propulsion Burnouts . | . . Robots Hopped . | . . Cave-ins Triggered . | . . Exploration Rate (%) 52 | 4 101 Regions Visited 1 Branch Regions . Pre-discovered Areas . | . . Known Exits Taken . | . . Unknown Exits Taken 1 | 1 . Scrap Searched . | . . Spaces Dug . | . . Terrain Destroyed 4 | . 4 Melee . | . . Projectile . | . . AOE 4 | . 4 Terrain Rammed . | . . Walls Destroyed . | . . Machines Disabled . | . . Actions | -11 -10 --------- Run | Yrd Mat Total 1690 | 65 1625 Wait 223 | . 223 Move 1327 | 49 1278 Hop . | . . Pick Up 27 | 10 17 Fast Attach 9 | 2 7 Attach 8 | 4 4 Detach . | . . Swap 17 | . 17 Drop 13 | . 13 Fire 66 | . 66 Melee . | . . Ram . | . . Kick . | . . Crush . | . . Escape Stasis . | . . Rewire . | . . Trap . | . . Miscellaneous . | . . Route ------- -11/Scrapyard -10/Materials (discovered 6 exits: *Mat x3 / *Min x2 / *Sub) History --------- Turn | Location | Event 16 | -11/Scrapyard | Discovered new exit (range 15) 93 | -11/Scrapyard | Entered Materials 317 | -10/Materials | Build established: Mutant 358 | -10/Materials | Discovered new exit (range 16) 599 | -10/Materials | Discovered new exit (range 12) 717 | -10/Materials | Identified exit to Materials 820 | -10/Materials | Repaired Imp. Heat Sink 847 | -10/Materials | Repaired Med. Laser 874 | -10/Materials | Discovered new exit (range 12) 937 | -10/Materials | Identified exit to Mines 1086 | -10/Materials | Core integrity fell below 50% 1127 | -10/Materials | Discovered exit to Materials (range 15) 1247 | -10/Materials | Discovered new exit (range 15) 1306 | -10/Materials | Identified exit to Subcaves 1951 | -10/Materials | Core integrity fell below 20% 1964 | -10/Materials | Destroyed by G-34 Mercenary with Small Laser Last Messages --------------- U-05 Engineer lays Concrete. U-05 Engineer builds a Wall. U-05 Engineer lays Concrete. U-05 Engineer repairs door. Imp. Ion Engine destroyed. Wheel destroyed. Heat Sink melted. G-34 Mercenary destroyed. K-01 Serf collects debris. G-34 Mercenary destroyed. Acquired 15 matter. K-01 Serf collects debris. Power failure, Ion Engine shutdown. G-34 Mercenary overheating. Overheating: Core damaged (-47). U-05 Engineer builds a Door. Overheating: Energy bleed (-23). Acquired Ion Engine. Power failure, Ion Engine shutdown. G-34 Mercenary heat short circuits Aluminum Leg. Map ----- +----------------------------------------------------+ | ## """ #?????????# ## #??????????# + | | ## """ #?######### ## #?########## # | | ## #?#]]!! |## ## """ ## # # | | ##### #?#] !||## ## """ ## # # | | ????# #?# ## ## """ ## # # | | ##### "T" ### # # ## + ## | | """ # """ ## """ ""# #? | | # """ ## """ T"#^ ^#? | | # """ ## """ ""#^ #? | | ##################+### # ## = *= # #? | | ???????????????# # ### #####+###### ## | | ???????????????# # #?##+####???# | | ???????????????# # #??# ######## | | ????############ """%# #??# | | ##### ## """ # #??# ################+### | | ## ## """ # #??# #?????# ! | | !!!## """ ## """ # #??# #?????# T | | !!!## """"" ## """%# #??# #?????# """ """ | | !!!## """"" [## [ # #??# #?????# """ """ | | ## """"" ## # #??# #?????# """ """ | | ## """ ## # #??# #?????# | | ## ## #t #??# #####?############## | | +########+############ #### #??????######### | | ^ [% g u #??????#] ! | | [ k #??????#]] | | ######## = " ####### [@ u #??????#** | | ###= " #???######/### #??????#** | | [ ### " #???# %= ## ##??????#!! | | ### #???# """ ## #???????#!! | | ### #???# """""## #???????##### | | "T" #?# """ #???# """""## #???????????# | | #?# """ #???# """""## #???????????##### | | ##+##### """ ##### """ ## ###########?????# | | % % + ## # #????## | | ##### ## # #????# | | ##+####+#####+##???# ## # #????# | | # #???########### # #????# | | "" !!# #?????????????# + #????# | | "Y !!# #?????????????# # """ """ #????#" | | "" # """ #?????????????# # """ """ #????## | | # """"" #?????????????# # """ """ #?????# | | # """"" #?????????????###############?????? | | ####### """"" #?????????????????????????????????? | | ??????# """ #?????????????????????????????????? | | ??????#| #?????????????????????????????????? | | ??????##########?????????????????????????????????? | | ?????????????????????????????????????????????????? | | | | | | | +----------------------------------------------------+ Best States ------------- Heat Dissipation 39 Energy Generation 14 Energy Capacity 265 Matter Stores 300 Matter Capacity 300 Sight Range 16 Terrain Scan Density 10 Evasion (%) 50 Recoil Reduction 2 Item Schematics ----------------- None Robot Schematics ------------------ None Fabricated ------------ Nothing Alien Tech Used ----------------- None Achievements -------------- None Challenges ------------ None Game ------ Seed DirtyShockTearclaws Manual? 0 Play Time 00:22:55 Cumulative 9.7 hours Start 2024.04.11 @ 04:49:27 End 2024.04.11 @ 05:12:12 Sessions 1 Manual Loads 0 Difficulty Rogue Special Mode None Game No. 11 Rogue 11 Adventurer 0 Explorer 0 Win Type - Total 0 Types 0/0/0/0/0/0/0/0/0 Lore% 3 Gallery% 13 Achievement% 100 Wizard Run 0 Options --------- Layout 1 ASCII 0 Keyboard 0 Movement Mouse Keybinds 0 Fullscreen 1 Font 24/Smallcaps Map View 50x35 Zoom Use 0% Tactical HUD 0 Map Filters NONE Filters NONE Steam 1 RUN: f1a78682-a7f9-46ab-b53d-415fd797ef8c